bitfinex/quotes_BTCUSD_20240605
["timestamp","ask_amount","ask_price","bid_price","bid_amount"]
[1717594282606,0.21664717,71059.0,71055.0,0.140735]
[1717594283626,0.14441893,71059.0,71055.0,0.140735]
[1717594283785,0.14441893,71059.0,71055.0,0.02]
[1717594283994,0.14441893,71059.0,71058.0,0.02]
[1717594284167,0.14441893,71059.0,71057.0,0.02]
[1717594284371,0.14441893,71059.0,71056.0,0.02]
[1717594284578,0.14441893,71059.0,71053.0,0.1826]
[1717594284780,0.14441893,71059.0,71054.0,0.02]
[1717594284980,0.14441893,71059.0,71055.0,0.02]
[1717594285183,0.14441893,71059.0,71058.0,0.14073]
[1717594285384,0.14441893,71059.0,71058.0,0.16073]
[1717594285568,0.19,71060.0,71059.0,0.140728]
[1717594285777,0.33441893,71060.0,71059.0,0.140728]
[1717594286168,0.14441893,71060.0,71059.0,0.140728]
[1717594286375,0.19,71068.0,71065.0,0.02]
[1717594286549,0.33441893,71068.0,71067.0,0.396112]
[1717594286759,0.002,71069.0,71068.0,0.16071]
[1717594289225,0.002,71069.0,71068.0,0.620883]
[1717594290260,0.002,71069.0,71068.0,0.47841]
[1717594290715,0.14641893,71069.0,71068.0,0.47841]
[1717594291147,0.14641893,71069.0,71068.0,0.14071]
[1717594292113,0.14641893,71069.0,71068.0,0.16071]
[1717594293180,0.002,71069.0,71068.0,0.54213]
[1717594293382,0.002,71069.0,71068.0,0.860593]
[1717594294377,0.002,71069.0,71068.0,1.142013]
[1717594294575,0.002,71069.0,71068.0,1.132013]
[1717594295629,0.002,71069.0,71068.0,1.112013]
[1717594295810,0.002,71069.0,71068.0,0.77943]
[1717594295973,0.002,71069.0,71068.0,0.75943]
[1717594296372,0.14641893,71069.0,71068.0,0.24071]
[1717594296584,0.14641893,71069.0,71068.0,0.14071]
[1717594297196,0.19,71068.0,71064.0,0.140716]
[1717594297480,0.14441893,71067.0,71065.0,0.140715]
[1717594297793,0.14441893,71067.0,71066.0,0.140714]
[1717594300781,0.21736363,71067.0,71066.0,0.140714]
[1717594306347,0.21736363,71067.0,71058.0,0.0822]
[1717594306348,0.33322864,71067.0,71061.0,0.140722]
[1717594306550,0.19,71059.0,71050.0,0.1572]
[1717594306755,0.21736363,71058.0,71056.0,0.140732]
[1717594307041,0.0729447,71057.0,71056.0,0.140732]
[1717594307238,0.21736363,71057.0,71053.0,0.140739]
[1717594307444,0.14441893,71056.0,71053.0,0.140739]
[1717594307648,0.07295268,71055.0,71053.0,0.140739]
[1717594307853,0.21737161,71054.0,71053.0,0.140739]
[1717594314678,0.07295268,71054.0,71053.0,0.2006529]
[1717594315696,0.07295268,71054.0,71053.0,0.140739]
[1717594316484,0.07295268,71054.0,71053.0,0.160739]
[1717594318323,0.19,71059.0,71058.0,0.14073]
[1717594318537,0.33441893,71059.0,71058.0,0.14073]
[1717594319139,0.40736682,71059.0,71058.0,0.14073]
[1717594320425,0.40736682,71059.0,71055.0,0.140735]
[1717594320675,0.5707668,71058.0,71044.0,0.1586]
[1717594320850,0.19,71049.0,71039.0,0.1586]
[1717594321045,0.19,71049.0,71037.0,0.0814]
[1717594321046,0.21736682,71048.0,71040.0,0.140764]
[1717594321174,0.004,71047.0,71040.0,0.140764]
[1717594321375,0.24682253,71046.0,71036.0,0.140772]
[1717594321633,0.2,71043.0,71036.0,0.140772]
[1717594321828,0.14441893,71042.0,71033.0,0.140779]
[1717594322034,0.19,71039.0,71033.0,0.140779]
[1717594322261,0.14441893,71038.0,71034.0,0.140777]
[1717594322500,0.00638378,71038.0,71037.0,0.140771]
[1717594322817,0.14441893,71038.0,71037.0,0.140771]
[1717594323254,0.15077519,71038.0,71037.0,0.140771]
[1717594325147,0.00635626,71038.0,71037.0,0.140771]
[1717594325366,0.20651923,71048.0,71042.0,0.14076]
[1717594325600,0.14441893,71047.0,71042.0,0.14076]
[1717594326207,0.14441893,71047.0,71042.0,0.036076]
[1717594326437,0.19,71056.0,71051.0,0.02]
[1717594326641,0.19,71056.0,71052.0,0.1561]
[1717594326642,0.14441893,71055.0,71052.0,0.1561]
[1717594326864,0.14441893,71055.0,71053.0,0.0776]
[1717594327645,0.14441893,71055.0,71054.0,0.140738]
[1717594328043,0.14441893,71055.0,71042.0,0.1]
[1717594328044,0.21664717,71055.0,71045.0,0.140755]
[1717594328457,0.07222824,71047.0,71045.0,0.140754]
[1717594328760,0.14441893,71046.0,71045.0,0.140754]
[1717594331890,0.14441893,71046.0,71029.0,0.2319]
[1717594331891,0.004,71043.0,71029.0,0.2319]
[1717594332063,0.004,71043.0,71037.0,0.140771]
[1717594332064,0.14441893,71042.0,71037.0,0.140771]
[1717594332304,0.19,71039.0,71034.0,0.140777]
[1717594332472,0.14441893,71038.0,71034.0,0.140777]
[1717594332694,0.2,71036.0,71030.0,0.140784]
[1717594332936,0.14441893,71035.0,71030.0,0.140784]
[1717594333506,0.14441893,71035.0,71031.0,0.140781]
[1717594334372,0.14441893,71035.0,71032.0,0.140781]
[1717594335692,0.14441893,71035.0,71033.0,0.141725]
[1717594336278,0.14441893,71035.0,71034.0,0.140777]
[1717594336431,0.14441893,71035.0,71034.0,0.370677]
[1717594336879,0.14441893,71035.0,71034.0,0.390677]
[1717594337928,0.01665976,71046.0,71038.0,0.02]
[1717594338071,0.14441893,71045.0,71043.0,0.140759]
[1717594338274,0.19,71048.0,71044.0,0.140757]
[1717594338516,0.14441893,71048.0,71047.0,0.140751]
[1717594338875,0.14441893,71048.0,71047.0,0.160751]
[1717594339069,0.14441893,71048.0,71047.0,0.140751]
[1717594339481,0.14441893,71048.0,71047.0,0.160751]
[1717594341818,0.14441893,71048.0,71047.0,0.140751]
[1717594342025,0.14441893,71048.0,71047.0,0.160751]
[1717594342950,0.14441893,71048.0,71047.0,0.140751]
[1717594343155,0.14441893,71048.0,71047.0,0.160751]
[1717594343575,0.14441893,71048.0,71047.0,0.140751]
[1717594345869,0.14441893,71048.0,71044.0,0.140757]
[1717594346064,0.14441893,71047.0,71044.0,0.140757]
[1717594347401,0.14441893,71047.0,71045.0,0.140755]
[1717594348011,0.14441893,71047.0,71042.0,0.140761]
[1717594348309,0.19,71041.0,71035.0,0.140773]
[1717594348519,0.14441893,71040.0,71035.0,0.140773]
[1717594349366,0.023,71039.0,71033.0,0.000946]
[1717594349491,0.14841893,71038.0,71033.0,0.000946]
[1717594349690,0.22238365,71038.0,71033.0,0.000946]
[1717594349948,0.1713,71035.0,71033.0,0.000946]
[1717594350095,0.14441893,71034.0,71033.0,0.000946]
[1717594351125,0.47341893,71034.0,71033.0,0.000946]
[1717594351334,0.61419593,71034.0,71033.0,0.000946]
[1717594351533,0.710542,71034.0,71033.0,0.000946]
[1717594352046,0.710542,71034.0,71013.0,0.06295186]
[1717594352047,0.19,71024.0,71013.0,0.06295186]
[1717594352269,0.1713,71022.0,71013.0,0.06295186]
[1717594352437,0.33871893,71022.0,71013.0,0.06295186]
[1717594352633,0.33871893,71022.0,71014.0,0.140815]
[1717594355595,0.71163917,71022.0,71013.0,0.06295186]
[1717594355773,0.85644017,71022.0,71013.0,0.06295186]
[1717594356526,0.71821993,71022.0,71013.0,0.06295186]
[1717594356734,0.88951993,71022.0,71013.0,0.06295186]
[1717594358678,0.68951993,71022.0,71013.0,0.06295186]
[1717594358880,0.88951993,71022.0,71013.0,0.06295186]
[1717594359312,0.74871893,71022.0,71013.0,0.06295186]
[1717594359517,0.98339182,71022.0,71013.0,0.06295186]
[1717594359813,0.74871893,71022.0,71013.0,0.06295186]
[1717594360614,0.54871893,71022.0,71013.0,0.06295186]
[1717594360790,0.88951993,71022.0,71013.0,0.06295186]
[1717594362680,0.88951993,71022.0,71021.0,0.004946]
[1717594363504,0.94586993,71022.0,71021.0,0.004946]
[1717594367142,1.0909878,71022.0,71021.0,0.004946]
[1717594370616,1.10790335,71022.0,71021.0,0.004946]
[1717594370815,0.75278548,71022.0,71021.0,0.004946]
[1717594371016,0.55563448,71022.0,71021.0,0.004946]
[1717594371217,0.53263448,71022.0,71021.0,0.004946]
[1717594372041,0.73263448,71022.0,71021.0,0.004946]
[1717594372402,0.75563448,71022.0,71021.0,0.004946]
[1717594373235,0.55563448,71022.0,71021.0,0.004946]
[1717594374004,0.18433448,71022.0,71021.0,0.004946]
[1717594374131,0.14441893,71022.0,71021.0,0.083946]
[1717594374331,0.14441893,71022.0,71021.0,0.375849]
[1717594375492,0.16741893,71022.0,71021.0,0.395849]
[1717594375799,0.16741893,71022.0,71021.0,0.375849]
[1717594376296,0.16741893,71022.0,71021.0,0.395849]
[1717594376511,0.14441893,71022.0,71021.0,0.395849]
[1717594376875,0.14441893,71022.0,71021.0,0.4354339]
[1717594377517,0.14441893,71022.0,71021.0,0.395849]
[1717594378556,0.14441893,71022.0,71021.0,0.375849]
[1717594379933,0.14445893,71022.0,71021.0,0.375849]
[1717594381021,0.46745893,71022.0,71021.0,0.004946]
[1717594381229,0.58163715,71022.0,71021.0,0.004946]
[1717594382101,0.26745893,71022.0,71021.0,0.004946]
[1717594382305,0.16745893,71022.0,71021.0,0.004946]
[1717594383462,0.16745893,71022.0,71021.0,0.245146]
[1717594384373,0.16745893,71022.0,71021.0,0.385949]
[1717594384562,0.14445893,71022.0,71021.0,0.405949]
[1717594384930,0.14445893,71022.0,71021.0,0.4465439]
[1717594385063,0.14445893,71022.0,71021.0,0.405949]
[1717594385271,0.14445893,71022.0,71021.0,0.385949]
[1717594386130,0.14445893,71022.0,71021.0,0.405949]
[1717594386344,0.14445893,71022.0,71021.0,0.385949]
[1717594386533,0.14445893,71022.0,71021.0,0.405949]
[1717594388138,4e-05,71022.0,71021.0,0.8281499]
[1717594388297,4e-05,71022.0,71021.0,1.1097559]
[1717594388508,0.4769,71034.0,71033.0,0.160779]
[1717594388710,0.62131893,71034.0,71033.0,0.402679]
[1717594388914,0.4769,71034.0,71033.0,0.7255059]
[1717594389122,0.4769,71034.0,71033.0,0.7055059]
[1717594389321,0.62131893,71034.0,71033.0,0.382679]
[1717594389721,0.62131893,71034.0,71033.0,0.402679]
[1717594389930,0.62131893,71034.0,71033.0,0.684238]
[1717594390352,0.4769,71034.0,71033.0,0.684238]
[1717594392289,0.4769,71034.0,71033.0,0.402679]
[1717594392509,0.07222824,71041.0,71039.0,0.140767]
[1717594392818,0.33871893,71040.0,71033.0,0.2419]
[1717594393016,0.19,71033.0,71032.0,0.140781]
[1717594393220,0.40664717,71033.0,71032.0,0.140781]
[1717594394409,0.42964717,71033.0,71028.0,0.140788]
[1717594394590,0.1713,71029.0,71028.0,0.140788]
[1717594394945,0.19,71025.0,71021.0,0.004946]
[1717594395192,0.24352824,71022.0,71021.0,0.004946]
[1717594395362,0.41094717,71022.0,71021.0,0.004946]
[1717594400483,0.51094717,71022.0,71021.0,0.004946]
[1717594400689,0.80144189,71022.0,71021.0,0.004946]
[1717594400874,0.60144189,71022.0,71021.0,0.004946]
[1717594401284,0.51094717,71022.0,71021.0,0.004946]
[1717594401496,0.33871893,71022.0,71021.0,0.004946]
[1717594401692,0.43871893,71022.0,71021.0,0.145749]
[1717594402112,0.43871893,71022.0,71021.0,0.004946]
[1717594403428,0.63871893,71022.0,71021.0,0.004946]
[1717594403662,0.83521365,71022.0,71021.0,0.004946]
[1717594404401,0.54471893,71022.0,71021.0,0.004946]
[1717594404733,0.44471893,71022.0,71021.0,0.004946]
[1717594404931,0.54471893,71022.0,71021.0,0.004946]
[1717594405654,0.74471893,71022.0,71021.0,0.004946]
[1717594406155,0.54471893,71022.0,71021.0,0.004946]
[1717594406457,0.74471893,71022.0,71021.0,0.004946]
[1717594406917,0.8012193,71022.0,71021.0,0.004946]
[1717594407254,0.9420203,71022.0,71021.0,0.004946]
[1717594407400,1.3420203,71022.0,71021.0,0.004946]
[1717594408422,1.28551993,71022.0,71021.0,0.004946]
[1717594409376,0.66741893,71022.0,71021.0,0.004946]
[1717594409573,0.93871893,71022.0,71021.0,0.004946]
[1717594409779,0.24441893,71022.0,71021.0,0.081046]
[1717594410540,0.14441893,71022.0,71021.0,0.081046]
[1717594411682,0.16741893,71022.0,71021.0,0.081046]
[1717594411889,0.16741893,71022.0,71021.0,0.221849]
[1717594412237,0.14441893,71022.0,71021.0,0.2817339]
[1717594412481,0.14441893,71022.0,71021.0,0.394949]
[1717594413322,0.14441893,71022.0,71021.0,0.676555]
[1717594416451,0.14441893,71022.0,71021.0,0.958161]
[1717594417218,0.19,71025.0,71024.0,0.442391]
[1717594417440,0.33441893,71025.0,71024.0,0.679391]
[1717594417797,0.33441893,71025.0,71024.0,0.7769853]
[1717594418930,0.33441893,71025.0,71024.0,0.4753913]
[1717594419165,0.33441893,71025.0,71024.0,0.4953913]
[1717594420418,0.33441893,71025.0,71024.0,0.7769853]
[1717594422997,0.33441893,71025.0,71024.0,0.377797]
[1717594424745,0.33441893,71025.0,71024.0,0.397797]
[1717594425502,0.33441893,71025.0,71024.0,0.377797]
[1717594425843,0.33441893,71025.0,71024.0,0.397797]
[1717594426493,0.33441893,71025.0,71024.0,0.679391]
[1717594426883,0.14441893,71025.0,71024.0,1.0575793]
[1717594427246,0.14441893,71025.0,71024.0,1.0675793]
[1717594427447,0.14441893,71025.0,71024.0,1.0575793]
[1717594427648,0.14441893,71025.0,71024.0,1.0675793]
[1717594427923,0.14441893,71025.0,71024.0,1.0575793]
[1717594429193,0.14441893,71025.0,71024.0,0.960985]
[1717594430366,0.14441893,71025.0,71024.0,0.140797]
[1717594430534,0.3,71022.0,71021.0,0.005046]
[1717594430741,0.82094717,71022.0,71021.0,0.005046]
[1717594431013,0.62094717,71022.0,71021.0,0.005046]
[1717594434461,0.53871893,71022.0,71021.0,0.005046]
[1717594436390,0.33871893,71022.0,71021.0,0.005046]
[1717594436955,0.33871893,71022.0,71021.0,0.145849]
[1717594438347,0.31571893,71022.0,71021.0,0.413149]
[1717594439147,0.14441893,71022.0,71021.0,0.413149]
[1717594440588,0.14441893,71022.0,71021.0,0.674755]
[1717594440894,0.14441893,71022.0,71021.0,0.7642305]
[1717594441204,0.19,71025.0,71024.0,0.442391]
[1717594441503,0.19,71025.0,71024.0,0.602791]
[1717594441504,0.33441893,71025.0,71024.0,0.602791]
[1717594444787,0.14441893,71025.0,71024.0,0.884385]
[1717594444996,0.19,71035.0,71033.0,0.520638]
[1717594445202,0.62131893,71034.0,71033.0,0.520638]
[1717594447562,0.62131893,71034.0,71033.0,0.500638]
[1717594447977,0.62131893,71034.0,71033.0,0.140779]
[1717594448170,0.14441893,71034.0,71033.0,0.140779]
[1717594448389,0.19,71027.0,71025.0,0.281589]
[1717594448575,0.14441893,71026.0,71025.0,0.422384]
[1717594448764,0.14441893,71026.0,71025.0,0.522384]
[1717594448976,0.14441893,71026.0,71025.0,0.621427]
[1717594449378,0.14441893,71026.0,71025.0,0.903017]
[1717594450599,0.21664717,71026.0,71025.0,0.803974]
[1717594450768,0.14441893,71026.0,71025.0,0.542384]
[1717594450928,0.14441893,71026.0,71025.0,0.522384]
[1717594452449,0.14441893,71026.0,71025.0,0.542384]
[1717594452639,0.14441893,71026.0,71025.0,0.522384]
[1717594453196,0.14441893,71026.0,71025.0,0.876717]
[1717594454331,0.14441893,71026.0,71025.0,1.118517]
[1717594456482,0.14441893,71026.0,71025.0,1.045774]
[1717594456808,0.14441893,71026.0,71025.0,1.065774]
[1717594457100,0.14441893,71026.0,71025.0,1.045774]
[1717594457671,0.14441893,71026.0,71025.0,1.065774]
[1717594457876,0.14441893,71026.0,71025.0,0.803974]
[1717594458154,0.14441893,71026.0,71025.0,0.522384]
[1717594458331,0.34471893,71026.0,71025.0,0.140795]
[1717594458540,0.33871893,71026.0,71021.0,0.145848]
[1717594458744,0.023,71025.0,71021.0,0.145848]
[1717594458948,0.14441893,71024.0,71022.0,0.140801]
[1717594459126,0.09522824,71023.0,71022.0,0.140801]
[1717594459452,0.09522824,71023.0,71021.0,0.005046]
[1717594459453,0.16741893,71023.0,71021.0,0.005046]
[1717594459595,0.16741893,71023.0,71021.0,0.145849]
[1717594459596,0.14441893,71022.0,71021.0,0.145849]
[1717594459798,0.16741893,71022.0,71021.0,0.145849]
[1717594468405,0.17141893,71022.0,71021.0,0.005046]
[1717594468604,0.25529082,71022.0,71021.0,0.005046]
[1717594469023,0.17141893,71022.0,71021.0,0.005046]
[1717594469820,0.54364717,71022.0,71021.0,0.005046]
[1717594470000,0.47141893,71022.0,71021.0,0.005046]
[1717594472845,0.61221993,71022.0,71021.0,0.005046]
[1717594474363,0.47141893,71022.0,71021.0,0.005046]
[1717594474880,0.27141893,71022.0,71021.0,0.005046]
[1717594475788,0.47141893,71022.0,71021.0,0.005046]
[1717594477111,0.27141893,71022.0,71021.0,0.005046]
[1717594479475,0.71221993,71022.0,71021.0,0.005046]
[1717594480988,0.51221993,71022.0,71021.0,0.005046]
[1717594481192,0.37141893,71022.0,71021.0,0.005046]
[1717594481615,0.36741893,71022.0,71021.0,0.005046]
[1717594482472,0.26741893,71022.0,71021.0,0.005046]
[1717594482833,0.56741893,71022.0,71021.0,0.005046]
[1717594483034,0.36741893,71022.0,71021.0,0.005046]
[1717594483268,0.56741893,71022.0,71021.0,0.005046]
[1717594483621,0.70821993,71022.0,71021.0,0.005046]
[1717594484656,0.71421993,71022.0,71021.0,0.005046]
[1717594485035,0.8593378,71022.0,71021.0,0.005046]
[1717594485464,0.8633378,71022.0,71021.0,0.005046]
[1717594488582,0.71821993,71022.0,71021.0,0.005046]
[1717594490448,0.71821993,71022.0,71015.0,0.0419679]
[1717594490449,1.130813,71016.0,71015.0,0.0419679]
[1717594490667,1.46953193,71016.0,71015.0,0.0419679]
[1717594491296,1.36953193,71016.0,71015.0,0.0419679]
[1717594491492,1.46953193,71016.0,71015.0,0.0419679]
[1717594492399,1.6146498,71016.0,71015.0,0.0419679]
[1717594492716,1.46953193,71016.0,71015.0,0.0419679]
[1717594492884,1.00571893,71016.0,71015.0,0.0419679]
[1717594494465,1.02871893,71016.0,71015.0,0.0419679]
[1717594495146,0.92871893,71016.0,71015.0,0.0419679]
[1717594495354,1.02871893,71016.0,71015.0,0.1204679]
[1717594496883,0.92871893,71016.0,71015.0,0.1204679]
[1717594497050,1.02871893,71016.0,71015.0,0.1204679]
[1717594497252,1.12871893,71016.0,71015.0,0.0419679]
[1717594500255,0.95741893,71016.0,71015.0,0.0419679]
[1717594500503,1.12871893,71016.0,71015.0,0.0429139]
[1717594500707,1.32871893,71016.0,71015.0,0.0429139]
[1717594500866,1.12871893,71016.0,71015.0,0.0429139]
[1717594501381,1.02871893,71016.0,71015.0,0.0429139]
[1717594501582,1.14529044,71016.0,71015.0,0.0429139]
[1717594502604,1.34529044,71016.0,71015.0,0.0429139]
[1717594502985,1.14529044,71016.0,71015.0,0.0429139]
[1717594504092,1.04529044,71016.0,71015.0,0.0429139]
[1717594504450,1.14529044,71016.0,71015.0,0.0429139]
[1717594505164,0.54529044,71016.0,71015.0,0.2755139]
[1717594507061,0.40291893,71016.0,71015.0,0.7179589]
[1717594507820,0.33441893,71016.0,71015.0,0.7179589]
[1717594508487,0.33441893,71016.0,71015.0,0.6979589]
[1717594510990,0.33441893,71016.0,71015.0,0.7179589]
[1717594511419,0.33441893,71016.0,71015.0,0.6979589]
[1717594511618,0.33441893,71016.0,71015.0,0.7179589]
[1717594511972,0.33441893,71016.0,71015.0,0.6979589]
[1717594512372,0.33441893,71016.0,71015.0,0.4163289]
[1717594512603,0.71808682,71016.0,71015.0,0.0429139]
[1717594512778,0.82408682,71016.0,71015.0,0.0429139]
[1717594515723,0.84123363,71016.0,71015.0,0.0429139]
[1717594516269,0.63523363,71016.0,71015.0,0.0429139]
[1717594516469,0.47456574,71016.0,71015.0,0.0429139]
[1717594516637,0.54596574,71016.0,71015.0,0.0429139]
[1717594517047,0.52296574,71016.0,71015.0,0.0429139]
[1717594518516,0.64596574,71016.0,71015.0,0.0429139]
[1717594520358,0.54596574,71016.0,71015.0,0.0429139]
[1717594520808,0.54596574,71016.0,71015.0,0.2042139]
[1717594520995,0.52296574,71016.0,71015.0,0.33420586]
[1717594521381,0.52296574,71016.0,71015.0,0.2828139]
[1717594522627,0.54596574,71016.0,71015.0,0.2828139]
[1717594523898,0.64596574,71016.0,71015.0,0.0429139]
[1717594524118,0.84596574,71016.0,71015.0,0.0429139]
[1717594524332,1.12146131,71016.0,71015.0,0.0429139]
[1717594524551,0.98064831,71016.0,71015.0,0.0429139]
[1717594524923,1.03700231,71016.0,71015.0,0.0429139]
[1717594525134,0.83700231,71016.0,71015.0,0.0429139]
[1717594525324,0.70231974,71016.0,71015.0,0.0429139]
[1717594525696,0.90231974,71016.0,71015.0,0.0429139]
[1717594526866,1.04313274,71016.0,71015.0,0.0429139]
[1717594527578,0.87173274,71016.0,71015.0,0.0429139]
[1717594527788,1.28079201,71016.0,71015.0,0.0429139]
[1717594528354,0.540819,71013.0,71012.0,0.06295186]
[1717594528567,0.70823793,71013.0,71012.0,0.06295186]
[1717594528988,0.36741893,71013.0,71012.0,0.06295186]
[1717594529153,0.53881893,71013.0,71012.0,0.06295186]
[1717594531271,0.54348794,71013.0,71012.0,0.06295186]
[1717594533989,0.88860581,71013.0,71012.0,0.06295186]
[1717594534269,0.89460581,71013.0,71012.0,0.06295186]
[1717594534830,1.03542481,71013.0,71012.0,0.06295186]
[1717594538314,1.31706281,71013.0,71012.0,0.04636402]
[1717594538513,1.31706281,71013.0,71001.0,0.12990372]
[1717594538514,1.130841,71002.0,71001.0,0.12990372]
[1717594538732,0.440849,70998.0,70994.0,0.18590472]
[1717594538960,0.60826793,70998.0,70994.0,0.18590472]
[1717594539272,0.71286142,70998.0,70994.0,0.18590472]
[1717594539415,0.51286142,70998.0,70994.0,0.18590472]
[1717594539612,0.83402279,70998.0,70994.0,0.18590472]
[1717594540491,0.51286142,70998.0,70994.0,0.18590472]
[1717594541088,0.71286142,70998.0,70994.0,0.18590472]
[1717594544289,0.540854,70995.0,70994.0,0.18590472]
[1717594544489,0.70827293,70995.0,70994.0,0.18590472]
[1717594544668,0.86193418,70995.0,70994.0,0.18590472]
[1717594546145,1.14964318,70995.0,70994.0,0.18590472]
[1717594546729,0.4,70988.0,70986.0,0.009504]
[1717594546939,0.70828693,70988.0,70986.0,0.009504]
[1717594547115,0.71282491,70988.0,70986.0,0.009504]
[1717594547330,1.01377849,70988.0,70986.0,0.009504]
[1717594548247,0.822611,70987.0,70986.0,0.009504]
[1717594548446,0.4,70985.0,70984.0,0.009504]
[1717594548698,0.73881893,70985.0,70984.0,0.009504]
[1717594548894,0.74334715,70985.0,70984.0,0.009504]
[1717594549116,0.88846502,70985.0,70984.0,0.009504]
[1717594549275,1.31108802,70985.0,70984.0,0.009504]
[1717594549453,1.02933902,70985.0,70984.0,0.009504]
[1717594550499,0.88422115,70985.0,70984.0,0.009504]
[1717594551810,1.16597015,70985.0,70984.0,0.009504]
[1717594551962,1.13088,70982.0,70971.0,0.002]
[1717594552166,1.30281928,70982.0,70971.0,0.002]
[1717594552353,1.44793715,70982.0,70971.0,0.002]
[1717594552548,1.72969815,70982.0,70971.0,0.002]
[1717594552755,1.44793715,70982.0,70971.0,0.002]
[1717594553186,1.07981928,70982.0,70971.0,0.002]
[1717594553386,1.25121928,70982.0,70978.0,0.16914924]
[1717594554528,1.27421928,70982.0,70978.0,0.16914924]
[1717594555264,1.10281928,70982.0,70978.0,0.16914924]
[1717594555402,1.27421928,70982.0,70978.0,0.16914924]
[1717594556226,0.33893928,70982.0,70981.0,0.33673469]
[1717594556418,0.33893928,70982.0,70981.0,0.45595308]
[1717594556824,0.33893928,70982.0,70981.0,0.55661669]
[1717594557028,0.33441893,70982.0,70981.0,0.55661669]
[1717594557543,0.33882478,70982.0,70981.0,0.55661669]
[1717594560542,0.33882478,70982.0,70981.0,0.39573469]
[1717594561036,0.33882478,70982.0,70981.0,0.41573469]
[1717594561323,0.33882478,70982.0,70981.0,0.39573469]
[1717594561919,0.46182478,70982.0,70981.0,0.39573469]
[1717594562129,0.46182478,70982.0,70981.0,0.15513469]
[1717594562130,2.02323302,70982.0,70981.0,0.15513469]
[1717594563511,1.82323302,70982.0,70981.0,0.15513469]
[1717594563879,1.75100478,70982.0,70981.0,0.15513469]
[1717594565206,1.33872478,70982.0,70981.0,0.39963469]
[1717594565412,0.46182478,70982.0,70981.0,0.39963469]
[1717594565958,0.33882478,70982.0,70981.0,0.41963469]
[1717594566211,0.33882478,70982.0,70981.0,0.39963469]
[1717594567113,0.43882478,70982.0,70981.0,0.15513469]
[1717594567278,0.46182478,70982.0,70981.0,0.15513469]
[1717594568906,0.86182478,70982.0,70981.0,0.15513469]
[1717594573226,1.52005089,70982.0,70981.0,0.15513469]
[1717594573975,1.34782265,70982.0,70981.0,0.15513469]
[1717594574176,1.44782265,70982.0,70981.0,0.15513469]
[1717594575317,1.34782265,70982.0,70981.0,0.15513469]
[1717594575524,1.44782265,70982.0,70981.0,0.15513469]
[1717594576063,1.45182265,70982.0,70981.0,0.15513469]
[1717594576277,1.73958365,70982.0,70981.0,0.15513469]
[1717594576461,1.83958365,70982.0,70981.0,0.15513469]
[1717594576654,2.12134465,70982.0,70981.0,0.15513469]
[1717594577041,2.15871656,70982.0,70981.0,0.15513469]
[1717594577240,2.15871656,70982.0,70981.0,0.13508279]
[1717594577437,2.12134465,70982.0,70981.0,0.13508279]
[1717594579074,2.13865704,70982.0,70981.0,0.13508279]
[1717594579984,2.61555704,70982.0,70981.0,0.11325035]
[1717594580252,1.104432,70979.0,70978.0,0.00914924]
[1717594580478,1.38185093,70979.0,70978.0,0.00914924]
[1717594580615,1.38596355,70979.0,70978.0,0.00914924]
[1717594580824,1.412701,70972.0,70971.0,0.002]
[1717594581032,1.99279003,70972.0,70971.0,0.002]
[1717594581239,2.28870371,70972.0,70971.0,0.002]
[1717594581648,2.76560371,70972.0,70971.0,0.002]
[1717594583090,2.48380271,70972.0,70971.0,0.002]
[1717594583287,1.252622,70970.0,70969.0,0.22639468]
[1717594583494,1.130916,70964.0,70951.0,0.002]
[1717594583673,1.55673493,70964.0,70951.0,0.002]
[1717594583857,1.57973493,70964.0,70951.0,0.002]
[1717594584090,1.5838332,70964.0,70951.0,0.002]
[1717594584292,1.72895107,70964.0,70951.0,0.002]
[1717594584738,0.4,70961.0,70951.0,0.002]
[1717594585052,1.130932,70956.0,70951.0,0.002]
[1717594585253,2.0303688,70956.0,70951.0,0.002]
[1717594585614,2.03446641,70956.0,70951.0,0.002]
[1717594590180,2.91769441,70956.0,70955.0,0.03056021]
[1717594591325,2.46443041,70956.0,70955.0,0.03056021]
[1717594591619,2.63583041,70956.0,70955.0,0.03056021]
[1717594592012,2.91769441,70956.0,70955.0,0.03056021]
[1717594592214,2.92169441,70956.0,70955.0,0.03056021]
[1717594592378,2.94651451,70956.0,70955.0,0.03056021]
[1717594593075,2.94651451,70956.0,70943.0,0.166193]
[1717594593076,1.136956,70944.0,70943.0,0.009493]
[1717594593417,1.86168693,70944.0,70943.0,0.009493]
[1717594593611,1.86567918,70944.0,70943.0,0.009493]
[1717594594987,2.34257918,70944.0,70943.0,0.009493]
[1717594596222,2.62449118,70944.0,70943.0,0.009493]
[1717594597007,2.64755553,70944.0,70943.0,0.009493]
[1717594597915,2.44309118,70944.0,70943.0,0.009493]
[1717594598119,2.61449118,70944.0,70943.0,0.009493]
[1717594599608,2.61549118,70944.0,70943.0,0.009493]
[1717594599756,2.61649118,70944.0,70943.0,0.009493]
[1717594600589,2.6421806,70944.0,70943.0,0.009493]
[1717594600814,2.6986026,70944.0,70943.0,0.009493]
[1717594601904,2.74684551,70944.0,70943.0,0.009493]
[1717594602227,2.6986026,70944.0,70943.0,0.009493]
[1717594606412,3.1762465,70944.0,70943.0,0.009493]
[1717594606726,3.0048465,70944.0,70943.0,0.009493]
[1717594606940,3.1762465,70944.0,70943.0,0.009493]
[1717594607142,3.28373247,70944.0,70943.0,0.009493]
[1717594609548,3.3008894,70944.0,70943.0,0.009493]
[1717594609895,1.25294,70938.0,70926.0,0.1522]
[1717594610134,1.41294,70932.0,70918.0,0.1647]
[1717594610333,2.5679435,70932.0,70911.0,0.002]
[1717594610491,2.6009435,70932.0,70911.0,0.002]
[1717594611354,2.6009435,70932.0,70915.0,0.0772]
[1717594611686,1.694997,70922.0,70911.0,0.0792]
[1717594611840,2.61071593,70922.0,70911.0,0.0792]
[1717594612148,2.75993278,70922.0,70911.0,0.0792]
[1717594612721,2.91803278,70922.0,70911.0,0.0792]
[1717594612927,2.91803278,70922.0,70911.0,0.002]
[1717594613472,2.91803278,70922.0,70912.0,0.07000119]
[1717594613473,1.295087,70913.0,70912.0,0.07000119]
[1717594613649,1.96423417,70913.0,70912.0,0.07000119]
[1717594613853,1.96423417,70913.0,70911.0,0.002]
[1717594613854,1.253197,70912.0,70911.0,0.002]
[1717594614187,1.66979434,70912.0,70911.0,0.002]